Workbook

Sheet Sheet1
A1: x (cm) | B1: phi | C1: I(single) | D1: I(double) | E1: I | I1: lambda (mm) | J1: =Sheet2!CW42/1000 -> 0.75
A2: =-1.001 -> -1.001 | B2: =ATAN(A2/$J$4) -> -0.01000966569 | C2: =SIN($J$2*PI()*SIN(B2)/$J$1)^2/($J$2*PI()*SIN(B2)/$J$1)^2 -> 0.1702626831 | D2: =COS($J$3*PI()*SIN(B2)/$J$1)^2 -> 0.9999643821 | E2: =C2*D2 -> 0.1702566188 | I2: w (mm) | J2: 50
A3: =A2+0.02 -> -0.981 | B3: =ATAN(A3/$J$4) -> -0.009809685326 | C3: =SIN($J$2*PI()*SIN(B3)/$J$1)^2/($J$2*PI()*SIN(B3)/$J$1)^2 -> 0.1856714794 | D3: =COS($J$3*PI()*SIN(B3)/$J$1)^2 -> 0.9857456428 | E3: =C3*D3 -> 0.1830248518 | I3: d (mm) | J3: 150
A4: =A3+0.02 -> -0.961 | B4: -0.009609704182 | C4: 0.2017377064 | D4: 0.9410143132 | E4: 0.1898380692 | I4: L (cm) | J4: 100
A5: -0.941 | B5: -0.009409722269 | C5: 0.2184439298 | D5: 0.8685797385 | E5: 0.1897359714
A6: -0.921 | B6: -0.009209739603 | C6: 0.2357701241 | D6: 0.7729915985 | E6: 0.1822483251
A7: -0.901 | B7: -0.009009756201 | C7: 0.2536936942 | D7: 0.6602541709 | E7: 0.1675023198
A8: -0.881 | B8: -0.008809772078 | C8: 0.2721895084 | D8: 0.5374492007 | E8: 0.1462880337
A9: -0.861 | B9: -0.00860978725 | C9: 0.2912299411 | D9: 0.4122910629 | E9: 0.120071502
A10: -0.841 | B10: -0.008409801734 | C10: 0.3107849272 | D10: 0.2926421622 | E10: 0.09094877307
A11: -0.821 | B11: -0.008209815545 | C11: 0.3308220265 | D11: 0.186019008 | E11: 0.06153918522
A12: -0.801 | B12: -0.008009828699 | C12: 0.3513064989 | D12: 0.09911999926 | E12: 0.03482149991
A13: -0.781 | B13: -0.007809841213 | C13: 0.3722013896 | D13: 0.03740458252 | E13: 0.01392203759
A14: -0.761 | B14: -0.007609853101 | C14: 0.3934676244 | D14: 0.004750229422 | E14: 0.001869061486
A15: -0.741 | B15: -0.007409864381 | C15: 0.4150641151 | D15: 0.00320878587 | E15: 0.001331851868
A16: -0.721 | B16: -0.007209875069 | C16: 0.4369478735 | D16: 0.03287750708 | E16: 0.0143657568
A17: -0.701 | B17: -0.007009885179 | C17: 0.4590741351 | D17: 0.0918928863 | E17: 0.0421856473
A18: -0.681 | B18: -0.006809894729 | C18: 0.4813964911 | D18: 0.1765476711 | E18: 0.08498942937
A19: -0.661 | B19: -0.006609903734 | C19: 0.5038670279 | D19: 0.2815237213 | E19: 0.1418505207
A20: -0.641 | B20: -0.006409912211 | C20: 0.5264364758 | D20: 0.4002260834 | E20: 0.2106936089
A21: -0.621 | B21: -0.006209920174 | C21: 0.5490543623 | D21: 0.5251972974 | E21: 0.2883618672
A22: -0.601 | B22: -0.006009927641 | C22: 0.5716691743 | D22: 0.6485859077 | E22: 0.3707765703
A23: -0.581 | B23: -0.005809934627 | C23: 0.5942285241 | D23: 0.7626397447 | E23: 0.4531822899
A24: -0.561 | B24: -0.005609941148 | C24: 0.616679322 | D24: 0.8601929845 | E24: 0.5304632265
A25: -0.541 | B25: -0.005409947221 | C25: 0.6389679523 | D25: 0.9351163849 | E25: 0.5975094016
A26: -0.521 | B26: -0.005209952861 | C26: 0.6610404537 | D26: 0.9827024061 | E26: 0.6496060444
A27: -0.501 | B27: -0.005009958083 | C27: 0.6828427027 | D27: 0.999961017 | E27: 0.6828160834
A28: -0.481 | B28: -0.004809962906 | C28: 0.7043205988 | D28: 0.9858075971 | E28: 0.6943245972
A29: -0.461 | B29: -0.004609967343 | C29: 0.7254202522 | D29: 0.9411311249 | E29: 0.682715578
A30: -0.441 | B30: -0.004409971412 | C30: 0.7460881708 | D30: 0.8687383621 | E30: 0.6481554155
A31: -0.421 | B31: -0.004209975127 | C31: 0.7662714489 | D31: 0.7731775399 | E31: 0.5924638738
A32: -0.401 | B32: -0.004009978506 | C32: 0.7859179536 | D32: 0.6604526193 | E32: 0.519061571
A33: -0.381 | B33: -0.003809981565 | C33: 0.8049765108 | D33: 0.5376460773 | E33: 0.4327924633
A34: -0.361 | B34: -0.003609984318 | C34: 0.8233970878 | D34: 0.4124739189 | E34: 0.3396298237
A35: -0.341 | B35: -0.003409986783 | C35: 0.841130974 | D35: 0.2928008725 | E35: 0.2462838831
A36: -0.321 | B36: -0.003209988975 | C36: 0.8581309563 | D36: 0.1861462303 | E36: 0.1597378426
A37: -0.301 | B37: -0.00300999091 | C37: 0.8743514909 | D37: 0.09921138516 | E37: 0.08674562253
A38: -0.281 | B38: -0.002809992604 | C38: 0.8897488697 | D38: 0.03745874936 | E38: 0.03332887991
A39: -0.261 | B39: -0.002609994073 | C39: 0.9042813796 | D39: 0.004768517542 | E39: 0.004312081622
A40: -0.241 | B40: -0.002409995334 | C40: 0.9179094567 | D40: 0.003194841037 | E40: 0.002932574801
A41: -0.221 | B41: -0.002209996402 | C41: 0.9305958313 | D41: 0.03283673737 | E41: 0.03055773091
A42: -0.201 | B42: -0.002009997293 | C42: 0.9423056663 | D42: 0.09183184812 | E42: 0.08653367083
A43: -0.181 | B43: -0.001809998023 | C43: 0.9530066858 | D43: 0.1764734396 | E43: 0.1681803678
A44: -0.161 | B44: -0.001609998609 | C44: 0.9626692957 | D44: 0.2814432959 | E44: 0.2709368194
A45: -0.141 | B45: -0.001409999066 | C45: 0.9712666934 | D45: 0.4001458727 | E45: 0.3886483586
A46: -0.121 | B46: -0.001209999409 | C46: 0.9787749679 | D46: 0.5251227149 | E46: 0.5139769684
A47: -0.101 | B47: -0.001009999657 | C47: 0.9851731894 | D47: 0.6485210999 | E47: 0.6389056003
A48: -0.081 | B48: -0.0008099998229 | C48: 0.9904434874 | D48: 0.7625874571 | E48: 0.7552997804
A49: -0.061 | B49: -0.0006099999243 | C49: 0.9945711179 | D49: 0.8601545619 | E49: 0.8554848842
A50: -0.041 | B50: -0.000409999977 | C50: 0.9975445186 | D50: 0.935091888 | E50: 0.9327957873
A51: -0.021 | B51: -0.0002099999969 | C51: 0.9993553522 | D51: 0.9826908202 | E51: 0.9820573307
A52: -0.001 | B52: -1e-05 | C52: 0.9999985378 | D52: 0.9999605221 | E52: 0.99995906
A53: 0.019 | B53: 0.0001899999977 | C53: 0.9994722704 | D53: 0.985815867 | E53: 0.9852956227
A54: 0.039 | B54: 0.0003899999802 | C54: 0.9977780269 | D54: 0.941145622 | E54: 0.9390544218
A55: 0.059 | B55: 0.0005899999315 | C55: 0.9949205613 | D55: 0.8687566023 | E55: 0.8643438064
A56: 0.079 | B56: 0.0007899998357 | C56: 0.9909078864 | D56: 0.7731973031 | E56: 0.7661673054
A57: 0.099 | B57: 0.0009899996766 | C57: 0.9857512437 | D57: 0.6604720936 | E57: 0.6510611877
A58: 0.119 | B58: 0.001189999438 | C58: 0.9794650615 | D58: 0.5376639307 | E58: 0.5266230349
A59: 0.139 | B59: 0.001389999105 | C59: 0.9720669003 | D59: 0.4124893012 | E59: 0.4009671964
A60: 0.159 | B60: 0.00158999866 | C60: 0.9635773875 | D60: 0.2928133588 | E60: 0.2821483313
A61: 0.179 | B61: 0.001789998088 | C61: 0.9540201397 | D61: 0.186155722 | E61: 0.1775963079
A62: 0.199 | B62: 0.001989997373 | C62: 0.9434216746 | D62: 0.09921798784 | E62: 0.09360440024
A63: 0.219 | B63: 0.002189996499 | C63: 0.9318113122 | D63: 0.03746264977 | E63: 0.03490812084
A64: 0.239 | B64: 0.002389995449 | C64: 0.9192210651 | D64: 0.004769878133 | E64: 0.004384572458
A65: 0.259 | B65: 0.002589994209 | C65: 0.9056855202 | D65: 0.00319372878 | E65: 0.002892513912
A66: 0.279 | B66: 0.002789992761 | C66: 0.8912417099 | D66: 0.0328330971 | E66: 0.0292622256
A67: 0.299 | B67: =ATAN(A67/$J$4) -> 0.00298999109 | C67: =SIN($J$2*PI()*SIN(B67)/$J$1)^2/($J$2*PI()*SIN(B67)/$J$1)^2 -> 0.8759289752 | D67: =COS($J$3*PI()*SIN(B67)/$J$1)^2 -> 0.09182552441 | E67: =C67*D67 -> 0.0804326375
A68: =A67+0.02 -> 0.319 | B68: 0.003189989179 | C68: 0.859788821 | D68: 0.1764642438 | E68: 0.1517219841
A69: 0.339 | B69: 0.003389987014 | C69: 0.842864763 | D69: 0.2814311089 | E69: 0.2372083649
A70: 0.359 | B70: 0.003589984577 | C70: 0.8252021689 | D70: 0.4001307671 | E70: 0.3301887769
A71: 0.379 | B71: 0.003789981854 | C71: 0.8068480922 | D71: 0.525105078 | E71: 0.4236800305
A72: 0.399 | B72: 0.003989978826 | C72: 0.787851102 | D72: 0.6485017358 | E72: 0.5109228073
A73: 0.419 | B73: 0.00418997548 | C73: 0.7682611067 | D73: 0.7625676488 | E73: 0.5858510658
A74: 0.439 | B74: 0.004389971799 | C74: 0.7481291743 | D74: 0.8601360754 | E74: 0.6434928919
A75: 0.459 | B75: 0.004589967766 | C75: 0.7275073503 | D75: 0.9350769077 | E75: 0.6802753234
A76: 0.479 | B76: 0.004789963366 | C76: 0.7064484715 | D76: 0.9826818124 | E76: 0.6942140643
A77: 0.499 | B77: 0.004989958583 | C77: 0.6850059796 | D77: 0.9999600301 | E77: 0.6849786
A78: 0.519 | B78: 0.005189953401 | C78: 0.6632337334 | D78: 0.9858262512 | E78: 0.653833225
A79: 0.539 | B79: 0.005389947804 | C79: 0.6411858206 | D79: 0.9411687666 | E79: 0.6034640679
A80: 0.559 | B80: 0.005589941775 | C80: 0.6189163708 | D80: 0.8687936154 | E80: 0.5377105914
A81: 0.579 | B81: 0.0057899353 | C81: 0.5964793699 | D81: 0.7732482423 | E81: 0.4612266243
A82: 0.599 | B82: 0.005989928361 | C82: 0.5739284761 | D82: 0.6605357495 | E82: 0.3791002761
A83: 0.619 | B83: 0.006189920943 | C83: 0.55131684 | D83: 0.5377376998 | E83: 0.2964638494
A84: 0.639 | B84: 0.00638991303 | C84: 0.528696927 | D84: 0.4125691735 | E84: 0.2181240542
A85: 0.659 | B85: 0.006589904605 | C85: 0.5061203456 | D85: 0.2928940375 | E85: 0.1482396315
A86: 0.679 | B86: 0.006789895654 | C86: 0.4836376794 | D86: 0.1862308819 | E86: 0.09006827154
A87: 0.699 | B87: 0.006989886159 | C87: 0.4612983257 | D87: 0.09928066694 | E87: 0.04579800544
A88: 0.719 | B88: 0.007189876106 | C88: 0.4391503403 | D88: 0.03750575482 | E88: 0.01647066499
A89: 0.739 | B89: 0.007389865477 | C89: 0.417240289 | D89: 0.004786772715 | E89: 0.001997234431
A90: 0.759 | B90: 0.007589854257 | C90: 0.3956131068 | D90: 0.003178861671 | E90: 0.001257599342
A91: 0.779 | B91: 0.007789842429 | C91: 0.3743119651 | D91: 0.03278262026 | E91: 0.01227092701
A92: 0.799 | B92: 0.007989829979 | C92: 0.3533781476 | D92: 0.09173784568 | E92: 0.03241814997
A93: 0.819 | B93: 0.00818981689 | C93: 0.3328509347 | D93: 0.1763404594 | E93: 0.05869508674
A94: 0.839 | B94: 0.008389803145 | C94: 0.3127674975 | D94: 0.2812752656 | E94: 0.08797376092
A95: 0.859 | B95: 0.008589788729 | C95: 0.2931628017 | D95: 0.3999499132 | E95: 0.1172504371
A96: =A95+0.02 -> 0.879 | B96: 0.008789773627 | C96: 0.274069521 | D96: 0.5249090769 | E96: 0.1438615793
A97: 0.899 | B97: 0.008989757821 | C97: 0.2555179611 | D97: 0.6483028316 | E97: 0.1656530177
A98: 0.919 | B98: 0.009189741296 | C98: 0.2375359941 | D98: 0.7623797945 | E98: 0.1810926424
A99: 0.939 | B99: 0.009389724036 | C99: 0.2201490033 | D99: 0.8599740538 | E99: 0.1893224308
A100: 0.959 | B100: 0.009589706025 | C100: 0.2033798391 | D100: 0.9349552949 | E100: 0.1901510574
A101: 0.979 | B101: 0.009789687247 | C101: 0.187248785 | D101: 0.9826138502 | E101: 0.1839932495

Sheet Sheet2
CW42: 750
CW46: 10
